{"text_format":"3","workbook":"xlsx","n_sheets":1,"sheets":["Förslag"],"not_rendered":{"images":1,"defined_names":20},"read":"whole","date_system":"1900"}

{"sheet":"Förslag","index":0,"n_rows":39,"n_cols":7,"rows_kept":39,"merged":[[0,1,3,1],[0,3,0,6],[1,4,1,6],[2,4,2,6],[32,3,35,4],[36,3,36,6],[37,3,37,5],[38,3,38,5]]}
[{"$nulls":3},"BYGGNADSFÖRSLAG"]
[{"$nulls":3},"Företagets namn","| Ange företagets gatuadress i den här cellen"]
[{"$nulls":3},"Telefon","| Ange företagets faxnummer och e-postadress till kontakt i den här cellen"]
[{"$nulls":3},"ANTAL","BESKRIVNING","ENHETSPRIS","BELOPP"]
[null,"KUND",null,10,"Artikel 1",{"v":165,"d":"165.00 kr"},{"$f":"IFERROR(Radobjekt[[#This Row],[ANTAL]]*Radobjekt[[#This Row],[ENHETSPRIS]], \"\")","v":{"v":1650,"d":"1,650.00 kr"}}]
[null,"Ange kundens namn i den här cellen",null,21,"Objekt 2",{"v":40,"d":"40.00 kr"},{"$f":"IFERROR(Radobjekt[[#This Row],[ANTAL]]*Radobjekt[[#This Row],[ENHETSPRIS]], \"\")","v":{"v":840,"d":"840.00 kr"}}]
[null,"KOSTNADSFÖRSLAG NR",null,5,"Objekt 3",{"v":10.5,"d":"10.50 kr"},{"$f":"IFERROR(Radobjekt[[#This Row],[ANTAL]]*Radobjekt[[#This Row],[ENHETSPRIS]], \"\")","v":{"v":52.5,"d":"52.50 kr"}}]
[null,"C-1234",null,164,"Artikel 4",{"v":2.75,"d":"2.75 kr"},{"$f":"IFERROR(Radobjekt[[#This Row],[ANTAL]]*Radobjekt[[#This Row],[ENHETSPRIS]], \"\")","v":{"v":451,"d":"451.00 kr"}}]
[null,"DATUM",null,6,"Artikel 5",{"v":12,"d":"12.00 kr"},{"$f":"IFERROR(Radobjekt[[#This Row],[ANTAL]]*Radobjekt[[#This Row],[ENHETSPRIS]], \"\")","v":{"v":72,"d":"72.00 kr"}}]
[null,{"$f":"TODAY()","v":"2018-11-15"},null,18,"Artikel 6",{"v":5.5,"d":"5.50 kr"},{"$f":"IFERROR(Radobjekt[[#This Row],[ANTAL]]*Radobjekt[[#This Row],[ENHETSPRIS]], \"\")","v":{"v":99,"d":"99.00 kr"}}]
[null,"ADRESS",null,1,"Artikel 7",{"v":25,"d":"25.00 kr"},{"$f":"IFERROR(Radobjekt[[#This Row],[ANTAL]]*Radobjekt[[#This Row],[ENHETSPRIS]], \"\")","v":{"v":25,"d":"25.00 kr"}}]
[null,"Ange kundens gatuadress i den här cellen",{"$nulls":4},{"$f":"IFERROR(Radobjekt[[#This Row],[ANTAL]]*Radobjekt[[#This Row],[ENHETSPRIS]], \"\")","v":{"v":0,"d":"0.00 kr"}}]
[null,"POSTNUMMER OCH ORT",{"$nulls":4},{"$f":"IFERROR(Radobjekt[[#This Row],[ANTAL]]*Radobjekt[[#This Row],[ENHETSPRIS]], \"\")","v":{"v":0,"d":"0.00 kr"}}]
[null,"Ange kundens postnummer och ort i den här cellen",{"$nulls":4},{"$f":"IFERROR(Radobjekt[[#This Row],[ANTAL]]*Radobjekt[[#This Row],[ENHETSPRIS]], \"\")","v":{"v":0,"d":"0.00 kr"}}]
[null,"TELEFON",{"$nulls":4},{"$f":"IFERROR(Radobjekt[[#This Row],[ANTAL]]*Radobjekt[[#This Row],[ENHETSPRIS]], \"\")","v":{"v":0,"d":"0.00 kr"}}]
[null,"Ange kundens telefonnummer i den här cellen",{"$nulls":4},{"$f":"IFERROR(Radobjekt[[#This Row],[ANTAL]]*Radobjekt[[#This Row],[ENHETSPRIS]], \"\")","v":{"v":0,"d":"0.00 kr"}}]
[null,"E-POST",{"$nulls":4},{"$f":"IFERROR(Radobjekt[[#This Row],[ANTAL]]*Radobjekt[[#This Row],[ENHETSPRIS]], \"\")","v":{"v":0,"d":"0.00 kr"}}]
[null,"Ange kundens e-postadress i den här cellen",{"$nulls":4},{"$f":"IFERROR(Radobjekt[[#This Row],[ANTAL]]*Radobjekt[[#This Row],[ENHETSPRIS]], \"\")","v":{"v":0,"d":"0.00 kr"}}]
[null,"SÄLJARE",{"$nulls":4},{"$f":"IFERROR(Radobjekt[[#This Row],[ANTAL]]*Radobjekt[[#This Row],[ENHETSPRIS]], \"\")","v":{"v":0,"d":"0.00 kr"}}]
[null,"Ange säljaren i den här cellen",{"$nulls":4},{"$f":"IFERROR(Radobjekt[[#This Row],[ANTAL]]*Radobjekt[[#This Row],[ENHETSPRIS]], \"\")","v":{"v":0,"d":"0.00 kr"}}]
[null,"PROJEKT",{"$nulls":4},{"$f":"IFERROR(Radobjekt[[#This Row],[ANTAL]]*Radobjekt[[#This Row],[ENHETSPRIS]], \"\")","v":{"v":0,"d":"0.00 kr"}}]
[null,"Ange projektnamn i den här cellen",{"$nulls":4},{"$f":"IFERROR(Radobjekt[[#This Row],[ANTAL]]*Radobjekt[[#This Row],[ENHETSPRIS]], \"\")","v":{"v":0,"d":"0.00 kr"}}]
[null,"FÖRBEREDD AV:",{"$nulls":4},{"$f":"IFERROR(Radobjekt[[#This Row],[ANTAL]]*Radobjekt[[#This Row],[ENHETSPRIS]], \"\")","v":{"v":0,"d":"0.00 kr"}}]
[null,"Ange namnet på den som gjort förberedelsen i den här cellen",{"$nulls":4},{"$f":"IFERROR(Radobjekt[[#This Row],[ANTAL]]*Radobjekt[[#This Row],[ENHETSPRIS]], \"\")","v":{"v":0,"d":"0.00 kr"}}]
[null,"ATTENTION",{"$nulls":4},{"$f":"IFERROR(Radobjekt[[#This Row],[ANTAL]]*Radobjekt[[#This Row],[ENHETSPRIS]], \"\")","v":{"v":0,"d":"0.00 kr"}}]
[null,"Ange namnet på den som förslaget ska ställas till i den här cellen",{"$nulls":4},{"$f":"IFERROR(Radobjekt[[#This Row],[ANTAL]]*Radobjekt[[#This Row],[ENHETSPRIS]], \"\")","v":{"v":0,"d":"0.00 kr"}}]
[null,"BETALNINGSVILLKOR",{"$nulls":4},{"$f":"IFERROR(Radobjekt[[#This Row],[ANTAL]]*Radobjekt[[#This Row],[ENHETSPRIS]], \"\")","v":{"v":0,"d":"0.00 kr"}}]
[null,"30 DAGAR NETTO",{"$nulls":4},{"$f":"IFERROR(Radobjekt[[#This Row],[ANTAL]]*Radobjekt[[#This Row],[ENHETSPRIS]], \"\")","v":{"v":0,"d":"0.00 kr"}}]
[null,"FÖRFALLODATUM",{"$nulls":4},{"$f":"IFERROR(Radobjekt[[#This Row],[ANTAL]]*Radobjekt[[#This Row],[ENHETSPRIS]], \"\")","v":{"v":0,"d":"0.00 kr"}}]
[null,{"$f":"TODAY()+30","v":"2018-12-15"},{"$nulls":4},{"$f":"IFERROR(Radobjekt[[#This Row],[ANTAL]]*Radobjekt[[#This Row],[ENHETSPRIS]], \"\")","v":{"v":0,"d":"0.00 kr"}}]
[{"$nulls":5},"DELSUMMA",{"$f":"SUBTOTAL(109,Radobjekt[BELOPP])","v":{"v":3189.5,"d":"3,189.50 kr"}}]
[{"$nulls":3},"I DET HÄR FÖRSLAGET INGÅR DE VILLKOR SOM ANGES:",null,"MOMSSATS ",{"v":0.0775,"d":"7.75%"}]
[{"$nulls":3},"Ange villkoren här",null,"MOMS ",{"$f":"IFERROR(Delsumma*Skattesats, \"\")","v":{"v":247.18625,"d":"247.19 kr"}}]
[{"$nulls":5},"ÖVRIGT "]
[{"$nulls":5},"SUMMA ",{"$f":"IFERROR(Delsumma+G33+Övrigt, \"\")","v":{"v":3436.68625,"d":"3,436.69 kr"}}]
[]
[{"$nulls":3},"Skriv under nedan för att godkänna offerten:"]
[]
[{"$nulls":3},"Behörig representant",null,null,"Datum"]